Cogmind - Beta 15 @@@ ROGUE MODE // 2025.05.29 @ 19:07:16 Player: morimori Result: Destroyed by S-27 Virus with Autogun Performance ------------- Evolutions (5) 2500 Regions Visited (20) 4000 Robots Destroyed (197) 985 Value Destroyed (5023) 5023 Prototype IDs (8) 160 Alien Tech Used (0) 0 Bonus (-1919) -1919 TOTAL SCORE: 10749 Bonus ------- Follower Combat Kills 577 Friendly Fire -2496 Cogmind --------- Core Integrity 0/1000 Matter 223/300 Energy 100/100 System Corruption 13% Temperature Cool (0) Movement Core (700) Ox13 Location -5/Upper Caves Parts ------- > --- POWER (1) -------- (None) > --- PROPULSION (6) --- (None) > --- UTILITY (8) ------ High-capacity Storage Unit Enhanced Optical Array Advanced Signal Interpreter Advanced Hacking Suite Advanced Hacking Suite > --- WEAPON (2) ------- (None) > --- INVENTORY (20) --- Huge Storage Unit Advanced Terrain Scan Processor Experimental Targeting Computer Experimental Targeting Computer Core Analyzer Experimental Utility Shielding Experimental Utility Shielding Advanced Hacking Suite Advanced Hacking Suite Improved System Shield Authchip [Device] Authchip [Device] Authchip [Device] Authchip [Processor] Authchip [Armor] Authchip [Weapon] Advanced Plasma Cannon Peak State ------------ > --- POWER ------------ Light Fission Core > --- PROPULSION ------- Cooled Aerolev Unit Antigrav System Antigrav System Antigrav System Antigrav System Combat Gravmag System > --- UTILITY ---------- High-capacity Storage Unit Enhanced Optical Array Advanced Signal Interpreter Experimental Utility Shielding Advanced Hacking Suite Advanced Hacking Suite Advanced Hacking Suite Advanced Hacking Suite > --- WEAPON ----------- Advanced Plasma Cannon Lance > --- INVENTORY -------- Antigrav System Huge Storage Unit Advanced Sensor Array Advanced Terrain Scan Processor Experimental Targeting Computer Experimental Targeting Computer Core Analyzer Precision Energy Filter Precision Energy Filter Experimental Utility Shielding Advanced Hacking Suite Advanced Hacking Suite Improved System Shield Authchip [Device] Authchip [Device] Authchip [Device] Authchip [Processor] Authchip [Armor] Authchip [Weapon] Gamma Bomb Array [Rating: 104] Favorites ----------- Power Light Nuclear Core Engine Light Angular Momentum Engine Power Core Light Nuclear Core Propulsion Antigrav System Wheel Wheel Hover Unit Antigrav System Utility Advanced Hacking Suite Device Advanced Sensor Array Storage Large Storage Unit Processor Advanced Signal Interpreter Hackware Advanced Hacking Suite Protection Core Shielding Weapon Chainsword Energy Gun Gatling Laser Energy Cannon Phase Cannon Ballistic Gun Heavy Assault Rifle Ballistic Cannon Gauss Cannon Launcher Mini Grenade Launcher Impact Weapon Great Maul Slashing Weapon Chainsword Piercing Weapon Lance Build | -11 -10 -10 -9 -9 -9 -8 -8 -7 -7 -7 -6 -6 -6 -6 -6 -5 -5 -5 -5 -5 ------- Run | Yrd Mat Min Mat Min Exi Min Mat Fac Low Low Fac Was Fac Low Low Fac Was Fac Upp Upp Slots Evolved 10 | . . . 2 . . . 2 2 . . 2 . . . . 2 . . . . Power . | . . . . . . . . . . . . . . . . . . . . . Propulsion 4 | . . . . . . . 2 1 . . . . . . . 1 . . . . Utility 6 | . . . 2 . . . . 1 . . 2 . . . . 1 . . . . Weapon . | . . . . . . . . . . . . . . . . . . . . . Parts Attached 176 | 7 13 2 20 10 . 8 22 15 2 3 24 1 16 . 1 24 1 2 3 2 Power 18 | 1 2 . 3 1 . . 2 2 . . 2 . 2 . . 1 . . 1 1 Engine 9 | 1 2 . 2 1 . . 1 . . . . . 1 . . . . . . 1 Core 9 | . . . 1 . . . 1 2 . . 2 . 1 . . 1 . . 1 . Reactor . | . . . . . . . . . . . . . . . . . . . . . Propulsion 60 | 2 2 2 5 5 . 2 8 7 . 1 7 1 3 . . 12 1 1 1 . Treads . | . . . . . . . . . . . . . . . . . . . . . Leg . | . . . . . . . . . . . . . . . . . . . . . Wheel 26 | 2 2 2 5 5 . 2 8 . . . . . . . . . . . . . Hover 34 | . . . . . . . . 7 . 1 7 1 3 . . 12 1 1 1 . Flight . | . . . . . . . . . . . . . . . . . . . . . Utility 54 | 2 5 . 8 3 . 1 2 5 . . 10 . 8 . . 7 . 1 1 1 Device 15 | 1 3 . 1 2 . 1 1 2 . . 2 . . . . . . . 1 1 Storage 7 | 1 2 . . 1 . . 1 1 . . . . . . . 1 . . . . Processor 4 | . . . . . . . . 1 . . 2 . 1 . . . . . . . Hackware 20 | . . . 1 . . . . 1 . . 6 . 7 . . 5 . . . . Protection 8 | . . . 6 . . . . . . . . . . . . 1 . 1 . . Artifact . | . . . . . . . . . . . . . . . . . . . . . Weapon 44 | 2 4 . 4 1 . 5 10 1 2 2 5 . 3 . 1 4 . . . . Energy Gun 8 | . 1 . . 1 . 1 4 . 1 . . . . . . . . . . . Energy Cannon 7 | . . . . . . . 1 1 . . 2 . 1 . . 2 . . . . Ballistic Gun 13 | 2 3 . 3 . . 3 2 . . . . . . . . . . . . . Ballistic Cannon 5 | . . . . . . . 2 . . . 2 . . . . 1 . . . . Launcher 6 | . . . 1 . . 1 . . 1 . 1 . 2 . . . . . . . Special Weapon . | . . . . . . . . . . . . . . . . . . . . . Impact Weapon 1 | . . . . . . . 1 . . . . . . . . . . . . . Slashing Weapon 2 | . . . . . . . . . . 1 . . . . 1 . . . . . Piercing Weapon 2 | . . . . . . . . . . 1 . . . . . 1 . . . . Special Melee Weapon . | . . . . . . . . . . . . . . . . . . . . . Unidentified Prototypes 4 | . . . . . . . 1 . . . 1 . 1 . . 1 . . . . Parts Lost 50 | . 3 . 4 4 . 4 8 1 . 1 3 . 2 . 1 4 . 1 1 13 Power 6 | . 1 . 1 1 . . 1 . . . . . . . . . . . . 2 Propulsion 27 | . 1 . 1 1 . 2 5 1 . 1 1 . 2 . 1 3 . 1 1 6 Utility 8 | . . . 2 1 . 1 . . . . 1 . . . . . . . . 3 Weapon 9 | . 1 . . 1 . 1 2 . . . 1 . . . . 1 . . . 2 Highest Loss Streak 13 | . 1 . 2 3 . 2 3 1 . 1 3 . 2 . 1 4 . 1 1 13 To Critical Strikes 1 | . . . . . . . . . . . . . . . . . . . . 1 Average Backups 17 | 3 8 14 14 21 24 24 24 15 15 14 14 14 14 15 14 18 20 19 19 19 Power 1 | 1 1 1 2 3 3 4 3 1 1 1 1 1 . 1 1 . . . . . Propulsion 2 | 1 2 3 3 7 8 7 7 2 2 1 . 1 1 1 . 1 1 . . . Utility 10 | . 2 5 4 4 6 5 6 8 9 9 11 12 11 12 12 15 18 18 18 17 Weapon 2 | . 1 4 4 6 7 7 6 3 3 3 1 . 1 1 1 1 1 1 1 1 Tool/Special . | . . . . . . . . . . . . . . . . . . . . . Unused Backups 54 | 2 2 2 9 1 2 3 3 2 . . 8 1 2 . . 4 . . . 13 Power 11 | 1 2 2 2 . 1 . . 2 . . 1 . . . . . . . . . Propulsion 9 | 1 . . . 1 . 2 1 . . . 1 . 1 . . 2 . . . . Utility 25 | . . . 3 . . 1 1 . . . 4 . 1 . . 2 . . . 13 Weapon 9 | . . . 4 . 1 . 1 . . . 2 1 . . . . . . . . Tool/Special . | . . . . . . . . . . . . . . . . . . . . . Average Slot Usage (%) 98 | . 99 100 95 97 100 99 93 99 98 100 99 100 98 100 99 97 100 99 94 98 Engine 4 | . 13 14 9 2 11 11 6 . . . . . 3 6 6 4 . . . . Core 3 | . . . . 8 . . 2 6 7 7 6 6 2 . . . 5 5 5 4 Wheel 9 | . 27 28 22 22 22 21 29 . . . . . . . . . . . . . Hover 21 | . . . . . . . . 37 38 38 32 33 32 33 33 33 35 34 30 34 Device 7 | . 14 14 6 10 11 17 10 7 7 7 5 6 5 6 5 4 5 4 5 5 Storage 7 | . 14 14 11 11 11 11 9 7 7 7 6 6 6 6 6 5 5 5 5 5 Processor 5 | . . . . . . . . 6 7 7 6 6 7 13 13 11 11 11 11 11 Hackware 15 | . . . . 11 11 11 9 14 15 15 25 26 24 20 20 22 23 23 23 22 Protection 3 | . . . 22 9 11 4 7 . . . . . . . . . . . . . Energy Gun 2 | . 7 . . 2 11 3 13 . 3 2 . . . . . . . . . . Energy Cannon 2 | . . . . . . . . 1 . . 3 6 5 5 5 3 5 5 3 4 Ballistic Gun 5 | . 20 28 21 14 11 16 1 . . . . . . . . . . . . . Slashing Weapon 1 | . . . . . . . . . . 1 5 6 5 6 6 2 . . . . Piercing Weapon 1 | . . . . . . . . . . 4 . . . . . 2 5 5 5 5 Peak Build Rating 104 | 7 8 9 19 20 19 21 31 42 40 44 75 73 82 80 77 103 103 104 104 104 Average Rating 53 | 6 7 8 15 18 18 20 27 36 37 39 64 71 75 77 76 94 103 102 97 101 On Entrance 49 | . 7 8 9 19 18 19 19 27 39 40 40 71 73 80 80 77 103 103 102 104 Naked Turns . | . . . . . . . . . . . . . . . . . . . . . Heaviest Build 103 | 13 29 29 48 95 95 95 103 40 38 36 46 39 45 45 44 63 60 60 67 66 Greatest Support 67 | 32 32 20 26 22 20 20 52 36 35 37 53 53 53 49 49 65 64 67 67 67 Greatest Overweight (x) 14 | 1 1 1 2 4 4 4 9 1 1 1 1 . . . . 1 1 . 1 14 Average Overweight (x) . | . . 1 1 3 4 4 2 . . . . . . . . . . . . . Largest Inventory Capacity 25 | 8 15 15 15 25 25 25 25 25 15 15 15 15 20 15 15 20 20 20 20 20 Average Capacity 17 | 7 10 15 15 22 25 25 24 15 15 15 15 15 15 15 15 19 20 20 20 20 Most Carried 25 | 6 14 15 15 25 25 25 25 25 15 15 15 15 16 15 15 20 20 20 20 20 Average Carried 17 | 3 8 14 14 21 24 24 24 15 14 14 14 14 14 15 14 18 20 19 19 19 Final Capacity 25 | 8 15 15 15 25 25 25 25 15 15 15 15 15 15 15 15 20 20 20 20 20 Final Carried 25 | 5 14 15 15 25 25 25 25 15 15 14 15 15 15 15 15 20 20 19 20 17 Class Distribution -------------------- 43% | Scavenger-Mutant 19% | Hacker-Mutant 18% | Hacker-Scout 12% | Hacker-Assassin 6% | Mutant Dominant Class ---------------- Mutant | -10/Materials Scavenger-Mutant | -10/Mines Scavenger-Mutant | -9/Materials Scavenger-Mutant | -9/Mines Scavenger-Mutant | -9/Exiles Scavenger-Mutant | -8/Mines Scavenger-Mutant | -8/Materials Scavenger-Mutant | -7/Factory Scavenger-Mutant | -7/Lower Caves Scavenger-Mutant | -7/Lower Caves Hacker-Mutant | -6/Factory Hacker-Mutant | -6/Waste Hacker-Mutant | -6/Factory Hacker-Scout | -6/Lower Caves Hacker-Scout | -6/Lower Caves Hacker-Scout | -5/Factory Hacker-Assassin | -5/Waste Hacker-Scout | -5/Factory Hacker-Assassin | -5/Upper Caves Hacker-Assassin | -5/Upper Caves Resources | -11 -10 -10 -9 -9 -9 -8 -8 -7 -7 -7 -6 -6 -6 -6 -6 -5 -5 -5 -5 -5 ----------- Run | Yrd Mat Min Mat Min Exi Min Mat Fac Low Low Fac Was Fac Low Low Fac Was Fac Upp Upp Matter Collected 5157 | 290 259 108 769 318 . 223 520 591 139 125 494 152 330 30 75 237 133 91 182 91 Remotely . | . . . . . . . . . . . . . . . . . . . . . Salvage Created 8236 | 121 610 278 863 219 . 295 1233 511 315 24 680 693 841 61 88 271 216 270 295 352 Parts 417 | 10 34 15 70 25 . 15 66 17 9 1 37 12 41 . 7 15 6 16 9 12 Haulers Intercepted 2 | . . . . . . . 1 1 . . . . . . . . . . . . Recyclers Shooed 5 | . 2 . . . . . 1 . . . 1 . . . . 1 . . . . Parts Field Recycled . | . . . . . . . . . . . . . . . . . . . . . Retrieved Matter . | . . . . . . . . . . . . . . . . . . . . . Parts Self-Destructed 27 | . . . . . . . . . 9 8 . . . . 6 . . . . 4 Prevented 21 | . . . . . . . . . 6 . . . . . 3 . . . 9 3 Kills | -11 -10 -10 -9 -9 -9 -8 -8 -7 -7 -7 -6 -6 -6 -6 -6 -5 -5 -5 -5 -5 ------- Run | Yrd Mat Min Mat Min Exi Min Mat Fac Low Low Fac Was Fac Low Low Fac Was Fac Upp Upp Combat Hostiles Destroyed 113 | . 10 2 24 10 . 6 20 6 5 1 9 2 5 . 3 2 . 1 4 3 Melee 8 | . . . . . . . . . . 1 . . 2 . . 2 . 1 . 2 Guns 60 | . 10 2 17 9 . 3 19 . . . . . . . . . . . . . Cannons 8 | . . . . . . . . 3 . . 2 1 1 . 1 . . . . . AOE 31 | . . . 7 1 . 3 . 3 4 . 7 . 2 . 2 . . . 1 1 Classes Destroyed 16 | 2 5 . 2 2 . . 2 1 . . 1 1 . . . . . . . . Worker 17 | . 3 1 1 . . 1 4 . . . 2 . 2 . . 1 . 2 . . Builder 5 | . . . . . . . 1 . . . . . 4 . . . . . . . Tunneler 11 | 2 1 1 . 1 . 3 1 . . . 1 . . . . . . 1 . . Hauler 2 | . . . . . . . 1 1 . . . . . . . . . . . . Recycler 18 | 1 2 2 . . . . 2 4 . . 3 . 2 . . 1 . 1 . . Operator 7 | . 1 . 3 . . . 2 . . . . . . . . . . 1 . . Watcher 17 | . 3 . 2 . . . 4 3 . . 1 . 3 . . . . 1 . . Swarmer 38 | . 3 . 7 6 . . 4 3 . 1 6 . 3 . 3 . . . . 2 Grunt 53 | . 7 2 10 2 . 6 15 2 5 . . . . . . . . . 4 . Brawler 1 | . . . . 1 . . . . . . . . . . . . . . . . Duelist 1 | . . . 1 . . . . . . . . . . . . . . . . . Sentry 7 | . . . 6 . . . 1 . . . . . . . . . . . . . Demolisher 1 | . . . . 1 . . . . . . . . . . . . . . . . Hunter 3 | . . . . . . . . . . . 2 . . . . . . . . 1 Programmer 7 | . . . . . . . . 1 . . 1 . 2 . . 2 . 1 . . Compactor 2 | . . . . . . . . . . . . 2 . . . . . . . . Packrat 1 | . . . . . . . . . 1 . . . . . . . . . . . Wasp 3 | . . . . . . . . . . . . . . . . . 3 . . . Martyr 4 | . . . . . . . . . . . . 2 . . . . 2 . . . Best Kill Streak 8 | 2 6 2 7 3 . 3 6 4 4 1 4 1 8 . 2 2 . 2 4 1 Combat Bots Only 7 | . 3 2 7 3 . 3 3 3 4 1 3 1 3 . 2 2 . 1 4 1 Max Kills in Single Turn 6 | 1 1 1 5 1 . 2 2 2 2 1 2 1 6 . 2 1 1 1 2 1 Gunslinging . | . . . . . . . . . . . . . . . . . . . . . Exploded 5 | . . . 5 1 . 2 . 2 2 . 2 . 2 . 2 . . . 1 1 Melee 1 | . . . . . . . . . . 1 . . 1 . . 1 . 1 . 1 Uniques/NPCs Destroyed . | . . . . . . . . . . . . . . . . . . . . . Combat | -11 -10 -10 -9 -9 -9 -8 -8 -7 -7 -7 -6 -6 -6 -6 -6 -5 -5 -5 -5 -5 -------- Run | Yrd Mat Min Mat Min Exi Min Mat Fac Low Low Fac Was Fac Low Low Fac Was Fac Upp Upp Hostile Shots Fired 750 | . 47 17 114 34 . 25 68 26 1 12 95 . 53 . 14 48 . 22 34 140 Missed 233 | . 10 5 25 9 . 7 20 7 1 2 35 . 24 . 8 11 . 7 16 46 Hits 517 | . 37 12 89 25 . 18 48 19 . 10 60 . 29 . 6 37 . 15 18 94 Melee 6 | . . . 6 . . . . . . . . . . . . . . . . . Projectile 511 | . 37 12 83 25 . 18 48 19 . 10 60 . 29 . 6 37 . 15 18 94 AOE 5 | . . . . 5 . . . . . . . . . . . . . . . . Critical Strikes 18 | . . . 2 . . 2 3 . . . 2 . 1 . . 5 . 1 1 1 Actively Blocked 1 | . . . . . . . 1 . . . . . . . . . . . . . Part Disruptions 1 | . . . . . . . . . . . . . . . . 1 . . . . Damage Taken 8106 | . 458 175 1225 416 . 298 725 320 . 89 796 . 535 . 93 759 . 305 349 1563 Core 1815 | . 130 72 181 47 . 40 94 48 . . 119 . 48 . 34 183 . 102 97 620 Absorbed by Shields . | . . . . . . . . . . . . . . . . . . . . . Redirected to Shielding 131 | . . . 21 11 . 8 21 . . . . . . . . 18 . 52 . . Regen/Repaired (Parts) 870 | . . . 137 . . . 278 . . . 141 52 51 . . 127 34 50 . . Core Remaining (%) 67 | 100 . 19 . . . 33 82 . . 93 . . . . 76 . . . . . Volleys Fired 738 | 10 96 17 103 25 . 13 68 35 7 11 86 57 73 3 27 18 10 19 15 45 Largest 2 | 2 2 2 2 2 . 2 2 2 1 1 2 1 1 1 1 1 1 1 1 1 Hottest 160 | 40 60 40 46 68 . 90 160 109 39 75 132 85 85 85 85 98 98 98 98 98 Shots Fired 1075 | 20 190 34 203 50 . 26 132 39 7 11 90 57 73 3 27 18 11 22 17 45 Gun 641 | 20 190 34 200 50 . 22 124 . . 1 . . . . . . . . . . Cannon 386 | . . . . . . . 6 34 . 10 77 57 71 3 26 18 11 22 11 40 Launcher 48 | . . . 3 . . 4 2 5 7 . 13 . 2 . 1 . . . 6 5 Special . | . . . . . . . . . . . . . . . . . . . . . Kinetic 513 | 20 134 34 200 49 . 12 14 31 . 10 6 . . . . 3 . . . . Thermal 501 | . 56 . . . . 10 107 . . 1 71 57 71 3 26 15 11 22 11 40 Explosive 22 | . . . 3 . . 4 2 5 . . 8 . . . . . . . . . Electromagnetic 39 | . . . . 1 . . 9 3 7 . 5 . 2 . 1 . . . 6 5 Robot Hit Streak 13 | 8 13 11 8 6 . 12 10 4 1 . 9 10 4 . 2 . . 2 3 4 Robot Miss Streak 6 | 2 3 2 4 4 . 3 5 3 1 . 1 3 2 . 2 . 3 1 6 1 Penetration Max . | . . . . . . . . . . . . . . . . . . . . . Secondary Targets 4 | . . . 2 2 . . . . . . . . . . . . . . . . Max Gunslinging Chain 1 | . . . 1 1 . . . . . . . . . . . . . . . . Shots Hit Robots 585 | 12 119 24 120 27 . 22 104 24 2 2 21 28 20 1 1 13 14 19 5 7 Core Hits 350 | 7 45 11 51 12 . 31 79 16 6 1 16 12 17 . 6 4 5 6 13 12 Critical Kills 2 | . . . . . . . . . 1 . . 1 . . . . . . . . Critical Parts Destroyed 4 | . . . 2 1 . . . 1 . . . . . . . . . . . . Critical Strikes 19 | . . . 2 1 . . . 7 1 1 . 1 2 . . 1 . 2 . 1 Meltdown 1 | . . . . . . . . . . . . 1 . . . . . . . . Destroy 3 | . . . 2 1 . . . . . . . . . . . . . . . . Blast 4 | . . . . . . . . 4 . . . . . . . . . . . . Corrupt 2 | . . . . . . . . 2 . . . . . . . . . . . . Smash 2 | . . . . . . . . 1 1 . . . . . . . . . . . Sever 3 | . . . . . . . . . . 1 . . 2 . . . . . . . Impale 4 | . . . . . . . . . . . . . . . . 1 . 2 . 1 Melee Attacks 388 | . . . . . . . 3 22 2 10 70 . 93 5 2 69 14 61 16 21 Impact 27 | . . . . . . . 3 22 2 . . . . . . . . . . . Slashing 199 | . . . . . . . . . . 6 70 . 93 5 2 23 . . . . Piercing 162 | . . . . . . . . . . 4 . . . . . 46 14 61 16 21 Sneak Attacks 37 | . . . . . . . . 4 1 . 6 . 4 . . 2 14 6 . . Combat Hostiles . | . . . . . . . . . . . . . . . . . . . . . Follow-up Attacks . | . . . . . . . . . . . . . . . . . . . . . Damage Inflicted 16086 | 93 1036 252 2156 463 . 605 2177 1340 387 79 1485 1040 1230 83 159 574 1009 867 573 478 Guns 5883 | 93 1036 252 1633 408 . 313 2148 . . . . . . . . . . . . . Cannons 2282 | . . . . . . . 29 583 . . 249 1040 90 . 63 . . 65 . 163 Explosions 3452 | . . . 519 55 . 292 . 341 274 . 718 . 354 . 96 . . . 573 230 Melee 4465 | . . . . . . . . 416 113 79 518 . 786 83 . 574 1009 802 . 85 Ramming 4 | . . . 4 . . . . . . . . . . . . . . . . . Kinetic 3983 | 93 706 252 1633 393 . 156 183 477 . . 90 . . . . . . . . . Thermal 4252 | . 330 . . 55 . 157 1920 . . . 191 1040 268 . 63 . . 65 . 163 Explosive 1650 | . . . 519 . . 292 . 341 . . 498 . . . . . . . . . Electromagnetic 1732 | . . . . 15 . . 74 106 274 . 188 . 176 . 96 . . . 573 230 Impact 529 | . . . . . . . . 416 113 . . . . . . . . . . . Slashing 1647 | . . . . . . . . . . 79 518 . 786 83 . 181 . . . . Piercing 2289 | . . . . . . . . . . . . . . . . 393 1009 802 . 85 Highest Corruption 13 | . . . . . . . . . . . . . . . . 7 7 10 10 13 Average Corruption 8 | . . . . . . . . . . . . . . . . 6 7 7 10 10 Corruption Purged . | . . . . . . . . . . . . . . . . . . . . . Corruption Blocked . | . . . . . . . . . . . . . . . . . . . . . Effects 144 | . . . . . . . . . . . . . . . . 6 15 39 38 46 Message Errors 44 | . . . . . . . . . . . . . . . . . 7 13 13 11 Matter Fused 34 | . . . . . . . . . . . . . . . . 2 3 6 8 15 Heat Flow Errors 14 | . . . . . . . . . . . . . . . . 1 . 5 3 5 Energy Discharges 19 | . . . . . . . . . . . . . . . . 2 . 6 4 7 Parts Rejected 1 | . . . . . . . . . . . . . . . . 1 . . . . Parts Fused 1 | . . . . . . . . . . . . . . . . . . . 1 . Data Loss (minor) 15 | . . . . . . . . . . . . . . . . . 3 4 6 2 Data Loss (major) 3 | . . . . . . . . . . . . . . . . . . 1 . 2 Misfires 7 | . . . . . . . . . . . . . . . . . 1 3 2 1 Alerts 4 | . . . . . . . . . . . . . . . . . 1 1 1 1 Misdirections 1 | . . . . . . . . . . . . . . . . . . . . 1 Weapon Failures 1 | . . . . . . . . . . . . . . . . . . . . 1 Overload Shots . | . . . . . . . . . . . . . . . . . . . . . Overflow Damage 1051 | . . . 32 . . . . 257 . . 147 5 95 46 . 90 162 193 . 24 Projectiles 25 | . . . . . . . . 8 . . . 5 . . . . . . . 12 Explosions 107 | . . . 32 . . . . . . . 48 . 15 . . . . . . 12 Melee 919 | . . . . . . . . 249 . . 99 . 80 46 . 90 162 193 . . Knockbacks 4 | . . . . . . . . 4 . . . . . . . . . . . . Impact 1 | . . . . . . . . 1 . . . . . . . . . . . . Kinetic 3 | . . . . . . . . 3 . . . . . . . . . . . . Secondary . | . . . . . . . . . . . . . . . . . . . . . Self-Inflicted Damage 148 | . . . 2 51 . . . . . . . . . . . . . . . 95 Shots 9 | . . . . 1 . . . . . . . . . . . . . . . 8 Rammed 1 | . . . 1 . . . . . . . . . . . . . . . . . Targets Rammed 1 | . . . 1 . . . . . . . . . . . . . . . . . Kicked . | . . . . . . . . . . . . . . . . . . . . . Crushed . | . . . . . . . . . . . . . . . . . . . . . Highest Temperature 320 | . 40 6 55 6 . 222 147 84 . 30 136 320 150 60 150 282 216 278 261 254 Average Temperature 49 | . 15 6 20 6 . 78 50 25 . 11 39 94 40 26 35 37 46 47 83 44 Received Heat Transfer 1882 | . 216 99 453 18 . 198 396 90 . 12 135 . 69 . . 18 . . 178 . Effects 1 | . . . . . . . . . . . . 1 . . . . . . . . Shutdowns 1 | . . . . . . . . . . . . 1 . . . . . . . . Siege Activations . | . . . . . . . . . . . . . . . . . . . . . Martial Activations . | . . . . . . . . . . . . . . . . . . . . . Shielding Activations . | . . . . . . . . . . . . . . . . . . . . . Robots Disrupted . | . . . . . . . . . . . . . . . . . . . . . Combat Hostiles . | . . . . . . . . . . . . . . . . . . . . . Robots Corrupted 5 | . . . . . . . . 1 1 . . . . . . . . . 3 . Combat Hostiles 4 | . . . . . . . . . 1 . . . . . . . . . 3 . Parts Fried 18 | . . . . . . . . 6 1 . 1 . . . . . . . 8 2 Impact Corruptions 8 | . . . . . . . . 8 . . . . . . . . . . . . Robots Melted 2 | . . . . . . . 1 . . . . 1 . . . . . . . . Combat Hostiles 2 | . . . . . . . 1 . . . . 1 . . . . . . . . Parts Melted 9 | . . . . . . . 8 . . . . 1 . . . . . . . . Heat Transferred 7429 | . 750 . . 50 . 195 4256 . . . 235 1258 261 . 74 . . 100 . 250 Parts Sabotaged . | . . . . . . . . . . . . . . . . . . . . . Parts Stolen . | . . . . . . . . . . . . . . . . . . . . . Parts Stripped . | . . . . . . . . . . . . . . . . . . . . . Power Chain Reactions 5 | . . . . 1 . . . . . . 1 . 2 . . . . . 1 . Alert | -11 -10 -10 -9 -9 -9 -8 -8 -7 -7 -7 -6 -6 -6 -6 -6 -5 -5 -5 -5 -5 ------- Run | Yrd Mat Min Mat Min Exi Min Mat Fac Low Low Fac Was Fac Low Low Fac Was Fac Upp Upp Maximum Alert Level 1 | . . . 1 . . . 1 . . . 1 . 1 . . . . . . . Low Security (%) 95 | 100 100 100 79 100 . 100 84 100 . . 94 100 95 . . 100 100 100 . . Level 1 4 | . . . 20 . . . 15 . . . 5 . 4 . . . . . . . Level 2 . | . . . . . . . . . . . . . . . . . . . . . Level 3 . | . . . . . . . . . . . . . . . . . . . . . Level 4 . | . . . . . . . . . . . . . . . . . . . . . Level 5 . | . . . . . . . . . . . . . . . . . . . . . High Security . | . . . . . . . . . . . . . . . . . . . . . Max Security . | . . . . . . . . . . . . . . . . . . . . . Peak Influence 306 | 5 64 60 306 187 . 70 236 175 . . 234 34 237 . . 67 50 33 . . Initial 112 | . . 9 . 112 . . . 81 . . 6 31 . . . . 20 . . . Average 54 | 1 17 14 125 43 . 11 126 74 . . 64 4 72 . . 11 12 4 . . Influence Increases 6016 | 15 366 195 736 252 . 180 733 572 155 50 699 67 856 5 85 330 112 203 285 120 Destroy 0b10 Robot/C 2400 | . 200 120 480 200 . 120 400 220 100 20 180 . 100 . 60 40 . 20 80 60 Destroy 0b10 Robot/NC 400 | 15 50 20 35 5 . 20 75 40 . . 35 . 55 5 . 10 . 30 . 5 Destroy Leader 558 | . 56 30 146 30 . 20 80 56 10 . 42 . 36 . 10 10 . 12 10 10 Allied During Kill 26 | . . 10 . . . . . 16 . . . . . . . . . . . . Successful Hack 280 | . 30 . 32 . . . 32 8 . . 69 . 27 . . 58 . 24 . . Disable Machine 135 | . . . . . . . 30 15 . . 15 . 60 . . . . 15 . . Destroy Structure 822 | . . . 28 2 . 20 26 37 . . 193 67 113 . . 122 112 102 . . Partial Spotted 90 | . . . . . . . 15 15 . . 15 . 30 . . 15 . . . . Lose Combat Pursuer 1305 | . 30 15 15 15 . . 75 165 45 30 150 . 435 . 15 75 . . 195 45 Influence Decreases 6016 | 15 340 221 448 540 . 180 553 602 294 50 619 158 623 238 85 271 171 179 276 153 Entered New Map 559 | . . 17 . 176 . . . 99 56 3 5 60 . 87 . . 39 . 10 7 Time Decay 4721 | 15 309 189 438 324 . 150 473 463 238 47 434 67 433 151 85 259 132 179 256 79 Lost Part 329 | . 20 . 10 40 . 30 80 10 . . 30 . 20 . . 12 . . 10 67 Lost Ally 96 | . . 15 . . . . . 30 . . . 31 20 . . . . . . . Purge Threat 311 | . 11 . . . . . . . . . 150 . 150 . . . . . . . Squads Dispatched 52 | . 2 . 6 . . . 3 7 . . 13 . 9 . . 8 . 4 . . Investigation 21 | . 1 . 2 . . . . 3 . . 6 . 4 . . 5 . . . . Extermination 16 | . . . . . . . . 2 . . 4 . 5 . . 2 . 3 . . Reinforcement 15 | . 1 . 4 . . . 3 2 . . 3 . . . . 1 . 1 . . Assault . | . . . . . . . . . . . . . . . . . . . . . Garrison . | . . . . . . . . . . . . . . . . . . . . . Intercept . | . . . . . . . . . . . . . . . . . . . . . Searches Triggered . | . . . . . . . . . . . . . . . . . . . . . Construction Impeded 4 | . . . 1 . . . . 1 . . 2 . . . . . . . . . Haulers Reinforced . | . . . . . . . . . . . . . . . . . . . . . Active Scanning Responses . | . . . . . . . . . . . . . . . . . . . . . Cargo Convoy Interrupts . | . . . . . . . . . . . . . . . . . . . . . Stealth | -11 -10 -10 -9 -9 -9 -8 -8 -7 -7 -7 -6 -6 -6 -6 -6 -5 -5 -5 -5 -5 --------- Run | Yrd Mat Min Mat Min Exi Min Mat Fac Low Low Fac Was Fac Low Low Fac Was Fac Upp Upp Distress Signals 15 | . 3 . 4 . . . 4 1 . . 2 . . . . 1 . . . . Communications Jammed . | . . . . . . . . . . . . . . . . . . . . . Distress Signals . | . . . . . . . . . . . . . . . . . . . . . Times Spotted 305 | . 34 6 40 11 . 6 37 26 9 2 25 11 42 . 4 19 . 5 16 12 Peak Tracking Total 8 | . 4 2 7 3 . 3 5 5 4 2 5 6 7 . 3 8 . 3 5 7 Tactical Retreats 55 | . 2 1 1 1 . . 5 6 3 2 7 1 14 . 1 4 . . 5 2 Traps | -11 -10 -10 -9 -9 -9 -8 -8 -7 -7 -7 -6 -6 -6 -6 -6 -5 -5 -5 -5 -5 ------- Run | Yrd Mat Min Mat Min Exi Min Mat Fac Low Low Fac Was Fac Low Low Fac Was Fac Upp Upp Traps Triggered 10 | . 1 . 1 . . . . . . . 1 . 5 . . 2 . . . . Indirectly . | . . . . . . . . . . . . . . . . . . . . . Trap Hack Attempts . | . . . . . . . . . . . . . . . . . . . . . Triggered . | . . . . . . . . . . . . . . . . . . . . . Disarmed . | . . . . . . . . . . . . . . . . . . . . . Reprogrammed . | . . . . . . . . . . . . . . . . . . . . . Reused . | . . . . . . . . . . . . . . . . . . . . . Traps Extracted . | . . . . . . . . . . . . . . . . . . . . . Installed . | . . . . . . . . . . . . . . . . . . . . . Triggered . | . . . . . . . . . . . . . . . . . . . . . Machines | -11 -10 -10 -9 -9 -9 -8 -8 -7 -7 -7 -6 -6 -6 -6 -6 -5 -5 -5 -5 -5 ---------- Run | Yrd Mat Min Mat Min Exi Min Mat Fac Low Low Fac Was Fac Low Low Fac Was Fac Upp Upp Machines Disabled 10 | . . . . . . . 2 1 . . 1 . 4 . . . . 1 . 1 Max in Single Turn 3 | . . . . . . . 1 1 . . 1 . 3 . . . . 1 . 1 Garrison Access 15 | . . . . . . . 1 2 . . 4 . 3 . . 2 . 3 . . Machines Repaired . | . . . . . . . . . . . . . . . . . . . . . Machines Dismantled . | . . . . . . . . . . . . . . . . . . . . . Machines Sabotaged . | . . . . . . . . . . . . . . . . . . . . . Overloaded Fab Kills . | . . . . . . . . . . . . . . . . . . . . . Hacking | -11 -10 -10 -9 -9 -9 -8 -8 -7 -7 -7 -6 -6 -6 -6 -6 -5 -5 -5 -5 -5 --------- Run | Yrd Mat Min Mat Min Exi Min Mat Fac Low Low Fac Was Fac Low Low Fac Was Fac Upp Upp Machines Accessed 133 | . 10 . 12 1 . . 8 11 2 . 31 . 21 1 1 22 . 10 1 2 Terminals 68 | . 7 . 9 . . . 5 4 1 . 14 . 14 . . 9 . 4 . 1 Fabricators 17 | . . . . . . . . 3 . . 5 . 3 . . 6 . . . . Repair Stations 11 | . 1 . 1 . . . 1 . . . 3 . 1 . . 3 . 1 . . Recycling Units 13 | . 2 . 1 . . . . 2 . . 4 . . . . 2 . 2 . . Scanalyzers 3 | . . . 1 . . . 1 . . . 1 . . . . . . . . . Garrison Access 15 | . . . . . . . 1 2 . . 4 . 3 . . 2 . 3 . . Total Hacks 334 | . 25 . 38 1 . . 36 24 2 . 75 . 59 1 1 52 . 17 1 2 Successful 244 | . 17 . 17 1 . . 29 16 2 . 52 . 43 1 1 45 . 17 1 2 Failed 89 | . 8 . 21 . . . 7 8 . . 23 . 16 . . 6 . . . . Catastrophic 10 | . 2 . 3 . . . . 1 . . 4 . . . . . . . . . Database Lockouts 1 | . . . . . . . . . . . . . . . . 1 . . . . Manual 153 | . 16 . 23 . . . 10 13 . . 34 . 26 . . 23 . 8 . . Terminals 177 | . 20 . 28 . . . 12 11 1 . 35 . 39 . . 20 . 10 . 1 Fabricators 57 | . . . . . . . . 6 . . 18 . 13 . . 20 . . . . Repair Stations 38 | . 3 . 6 . . . 13 . . . 6 . 2 . . 6 . 2 . . Recycling Units 17 | . 2 . 2 . . . . 3 . . 6 . . . . 2 . 2 . . Scanalyzers 14 | . . . 2 . . . 10 . . . 2 . . . . . . . . . Garrison Access 25 | . . . . . . . 1 4 . . 8 . 5 . . 4 . 3 . . Terminal Hacks 73 | . 9 . 2 1 . . 2 3 2 . 11 . 19 1 1 10 . 9 1 2 Record 3 | . . . . . . . . . 1 . . . . . . . . . . 2 Part Schematic 10 | . 2 . . . . . . . . . 3 . 1 . . 4 . . . . Open Door 5 | . . . . 1 . . . . 1 . . . . 1 1 . . . 1 . Branch Access Points 5 | . . . 1 . . . . 1 . . . . 1 . . 1 . 1 . . Machine Index 2 | . . . . . . . . . . . 1 . . . . . . 1 . . Terminal Index 5 | . 1 . 1 . . . . 1 . . . . 1 . . . . 1 . . Fabricator Index 2 | . . . . . . . . 1 . . . . 1 . . . . . . . Repair Station Index 1 | . . . . . . . . . . . . . 1 . . . . . . . Alert Level 1 | . . . . . . . . . . . 1 . . . . . . . . . Unreport Threat 3 | . 1 . . . . . . . . . 1 . 1 . . . . . . . Locate Traps 11 | . 4 . . . . . 1 . . . . . 2 . . 1 . 3 . . Recall Investigation 1 | . . . . . . . . . . . . . 1 . . . . . . . Recall Extermination 6 | . . . . . . . . . . . 2 . 2 . . 1 . 1 . . Registered Components 2 | . . . . . . . . . . . . . 1 . . 1 . . . . Zone Layout 16 | . 1 . . . . . 1 . . . 3 . 7 . . 2 . 2 . . Fabricator Hacks 35 | . . . . . . . . 3 . . 10 . 10 . . 12 . . . . Network Status 2 | . . . . . . . . . . . 1 . . . . 1 . . . . Load Schematic 24 | . . . . . . . . 3 . . 7 . 6 . . 8 . . . . Build 9 | . . . . . . . . . . . 2 . 4 . . 3 . . . . Repair Station Hacks 34 | . 1 . 6 . . . 13 . . . 5 . 2 . . 5 . 2 . . Scan Component 19 | . 1 . 3 . . . 7 . . . 3 . 1 . . 3 . 1 . . Repair 15 | . . . 3 . . . 6 . . . 2 . 1 . . 2 . 1 . . Recycling Unit Hacks 11 | . 1 . 1 . . . . 1 . . 4 . . . . 2 . 2 . . Retrieve Components 11 | . 1 . 1 . . . . 1 . . 4 . . . . 2 . 2 . . Scanalyzer 14 | . . . 2 . . . 10 . . . 2 . . . . . . . . . Insert Component 7 | . . . 1 . . . 5 . . . 1 . . . . . . . . . Analyze 7 | . . . 1 . . . 5 . . . 1 . . . . . . . . . Garrison Access Hacks 15 | . . . . . . . 1 2 . . 4 . 3 . . 2 . 3 . . Seal Access 15 | . . . . . . . 1 2 . . 4 . 3 . . 2 . 3 . . Unauthorized Hacks 62 | . 6 . 6 . . . 3 7 . . 16 . 9 . . 14 . 1 . . Terminals 42 | . 6 . 6 . . . 3 4 . . 10 . 6 . . 6 . 1 . . Track 6 | . . . 1 . . . . . . . 3 . . . . 2 . . . . Assimilate 9 | . 2 . 2 . . . . 1 . . . . 3 . . 1 . . . . Botnet 22 | . 3 . 2 . . . 2 2 . . 6 . 3 . . 3 . 1 . . Disrupt 2 | . . . 1 . . . . . . . 1 . . . . . . . . . Operators 3 | . 1 . . . . . 1 1 . . . . . . . . . . . . Fabricators 20 | . . . . . . . . 3 . . 6 . 3 . . 8 . . . . Prioritize 5 | . . . . . . . . . . . 1 . 1 . . 3 . . . . Recompile 15 | . . . . . . . . 3 . . 5 . 2 . . 5 . . . . Repair Stations . | . . . . . . . . . . . . . . . . . . . . . Recycling Units . | . . . . . . . . . . . . . . . . . . . . . Scanalyzers . | . . . . . . . . . . . . . . . . . . . . . Garrison Access . | . . . . . . . . . . . . . . . . . . . . . Data Cores Recovered 1 | . . . 1 . . . . . . . . . . . . . . . . . Used . | . . . . . . . . . . . . . . . . . . . . . Hacking Detections 98 | . 8 . 12 . . . 7 9 . . 22 . 17 . . 18 . 5 . . Full Trace Events 7 | . 1 . 3 . . . . . . . 1 . 2 . . . . . . . Feedback Events . | . . . . . . . . . . . . . . . . . . . . . Feedback Blocked . | . . . . . . . . . . . . . . . . . . . . . Robot Schematics Acquired . | . . . . . . . . . . . . . . . . . . . . . Robots Built . | . . . . . . . . . . . . . . . . . . . . . Authchips . | . . . . . . . . . . . . . . . . . . . . . Time . | . . . . . . . . . . . . . . . . . . . . . Total Robot Build Rating . | . . . . . . . . . . . . . . . . . . . . . Part Schematics Acquired 16 | . 2 . 1 . . . 4 . . . 4 . 1 . . 4 . . . . Parts Built 9 | . . . . . . . . . . . 2 . 4 . . 3 . . . . Authchips 9 | . . . . . . . . . . . 2 . 4 . . 3 . . . . Time 546 | . . . . . . . . . . . 79 . 311 . . 156 . . . . Total Part Build Rating 50 | . . . . . . . . . . . 12 . 22 . . 16 . . . . Parts Repaired 15 | . . . 3 . . . 6 . . . 2 . 1 . . 2 . 1 . . Time 510 | . . . 90 . . . 186 . . . 57 . 31 . . 66 . 80 . . Parts Recycled . | . . . . . . . . . . . . . . . . . . . . . Recycled Matter . | . . . . . . . . . . . . . . . . . . . . . Retrieved Matter . | . . . . . . . . . . . . . . . . . . . . . Retrieved Components 27 | . 3 . 9 . . . . 3 . . 6 . . . . 4 . 2 . . Parts Scanalyzed 6 | . . . 1 . . . 4 . . . 1 . . . . . . . . . Part Schematics Acquired 6 | . . . 1 . . . 4 . . . 1 . . . . . . . . . Parts Damaged 1 | . . . 1 . . . . . . . . . . . . . . . . . Bothacking | -11 -10 -10 -9 -9 -9 -8 -8 -7 -7 -7 -6 -6 -6 -6 -6 -5 -5 -5 -5 -5 ------------ Run | Yrd Mat Min Mat Min Exi Min Mat Fac Low Low Fac Was Fac Low Low Fac Was Fac Upp Upp Used RIF Installer . | . . . . . . . . . . . . . . . . . . . . . Robots Hacked . | . . . . . . . . . . . . . . . . . . . . . Non-combat . | . . . . . . . . . . . . . . . . . . . . . Combat . | . . . . . . . . . . . . . . . . . . . . . Robot Hacks Applied . | . . . . . . . . . . . . . . . . . . . . . Relay Couplers Released . | . . . . . . . . . . . . . . . . . . . . . Fabnet Peak Effective % . | . . . . . . . . . . . . . . . . . . . . . Robots Rewired . | . . . . . . . . . . . . . . . . . . . . . Allies Hacked . | . . . . . . . . . . . . . . . . . . . . . Hacks Repelled . | . . . . . . . . . . . . . . . . . . . . . Allies | -11 -10 -10 -9 -9 -9 -8 -8 -7 -7 -7 -6 -6 -6 -6 -6 -5 -5 -5 -5 -5 -------- Run | Yrd Mat Min Mat Min Exi Min Mat Fac Low Low Fac Was Fac Low Low Fac Was Fac Upp Upp Total Allies 46 | . . 5 . . . . . 1 . . . 19 2 . . 1 18 . . . Largest Group 19 | . . 3 1 . . . . 1 . . . 19 2 . . 1 19 1 . . Highest-Rated Group 702 | . . 61 31 . . . . 26 . . . 702 52 . . 26 682 26 . . Highest-Rated Ally 50 | . . 31 31 . . . . 26 . . . 50 26 . . 26 50 26 . . Total Orders 28 | . . . . . . . . 21 2 . 2 . . . . . . 3 . . STAY 6 | . . . . . . . . 4 . . . . . . . . . 2 . . FOLLOW 5 | . . . . . . . . 4 . . . . . . . . . 1 . . EXPLORE 6 | . . . . . . . . 5 1 . . . . . . . . . . . RETURN 11 | . . . . . . . . 8 1 . 2 . . . . . . . . . Ally Attacks 327 | . . 33 12 . . . . 65 6 . . 77 . . . . 134 . . . Total Damage 9659 | . . 409 142 . . . . 277 32 . . 4282 . . . . 4517 . . . Kills 28 | . . 4 1 . . . . 5 . . . 9 . . . . 9 . . . Allies Corrupted 1 | . . . . . . . . . . . . . 1 . . . . . . . Allies Melted . | . . . . . . . . . . . . . . . . . . . . . Intel | -11 -10 -10 -9 -9 -9 -8 -8 -7 -7 -7 -6 -6 -6 -6 -6 -5 -5 -5 -5 -5 ------- Run | Yrd Mat Min Mat Min Exi Min Mat Fac Low Low Fac Was Fac Low Low Fac Was Fac Upp Upp Active Infowar (turns) 19080 | 52 1111 800 257 1152 375 1174 934 1133 735 586 1864 472 1762 558 798 1390 451 1147 1068 1261 Optics 7103 | . . . . . . . . . . . . . 430 558 798 1390 451 1147 1068 1261 Sensors 13982 | . . . . 177 2 841 . 1112 735 586 1864 472 1762 558 768 1283 451 1115 1024 1232 Seismic 5812 | 52 1111 800 257 1152 375 1063 934 68 . . . . . . . . . . . . Robot Analysis Total . | . . . . . . . . . . . . . . . . . . . . . Derelict Logs Recovered 10 | . . 1 . 1 . . . . 1 1 . . . 1 3 . . . 1 1 Drone Launches 28 | . . . . . . . . 22 2 . 4 . . . . . . . . . Drone Recoveries 25 | . . . . . . . . 21 . . 4 . . . . . . . . . Exploration | -11 -10 -10 -9 -9 -9 -8 -8 -7 -7 -7 -6 -6 -6 -6 -6 -5 -5 -5 -5 -5 ------------- Run | Yrd Mat Min Mat Min Exi Min Mat Fac Low Low Fac Was Fac Low Low Fac Was Fac Upp Upp Turns Passed 22398 | 110 1407 838 1512 1429 375 1178 1717 1256 799 591 1958 472 2083 558 798 1390 451 1147 1068 1261 Spaces Moved 22648 | 56 994 634 907 944 265 739 866 1336 1264 1110 2590 314 2735 1111 1309 1807 312 1291 994 1070 Core 3 | 2 . . . . . . . . . . . . . . . . . . . 1 Treads . | . . . . . . . . . . . . . . . . . . . . . Legs . | . . . . . . . . . . . . . . . . . . . . . Wheels 5403 | 54 994 634 907 944 265 739 866 . . . . . . . . . . . . . Hover 17242 | . . . . . . . . 1336 1264 1110 2590 314 2735 1111 1309 1807 312 1291 994 1069 Flight . | . . . . . . . . . . . . . . . . . . . . . Fastest Speed 38 | 50 95 95 95 100 140 140 100 44 44 44 44 48 46 46 46 38 38 38 41 41 Average Speed 66 | 99 99 95 103 128 140 140 122 60 49 44 49 48 46 46 46 41 67 39 81 78 Slowest Speed 750 | 100 115 95 115 145 140 140 215 104 104 108 107 48 53 46 46 102 100 41 106 750 Overloaded Moves . | . . . . . . . . . . . . . . . . . . . . . Propulsion Burnouts . | . . . . . . . . . . . . . . . . . . . . . Robots Hopped . | . . . . . . . . . . . . . . . . . . . . . Potential Cave-ins 2 | . . . . . . . . . . . . . . . . . . . 2 . Cave-ins Triggered . | . . . . . . . . . . . . . . . . . . . . . Exploration Rate (%) 73 | 4 91 92 65 99 68 95 66 27 99 86 68 89 61 97 97 57 94 36 82 69 Regions Visited 20 Branch Regions 10 Pre-discovered Areas 2 | . . . . 2 . . . . . . . . . . . . . . . . Known Exits Taken 10 | . . . 1 . . 1 . 1 1 1 . . 1 1 1 . . 1 1 . Unknown Exits Taken 6 | 1 1 1 . 1 1 . 1 . . . . . . . . . . . . . Scrap Searched 23 | . . 1 . 3 . 1 . . 4 5 . . . 1 5 . . . 2 1 Spaces Dug 393 | . . . . . . . 14 16 1 15 91 10 88 4 8 54 7 42 19 24 Terrain Destroyed 775 | . . . 24 2 . 23 25 44 1 23 226 21 140 7 26 69 10 57 28 49 Melee 286 | . . . . . . . 2 16 1 8 61 . 74 4 2 49 . 39 15 15 Projectile 307 | . . . . . . . 2 15 . 15 68 21 66 3 24 20 10 18 11 34 AOE 182 | . . . 24 2 . 23 21 13 . . 97 . . . . . . . 2 . Terrain Rammed . | . . . . . . . . . . . . . . . . . . . . . Walls Destroyed . | . . . . . . . . . . . . . . . . . . . . . Machines Disabled . | . . . . . . . . . . . . . . . . . . . . . Actions | -11 -10 -10 -9 -9 -9 -8 -8 -7 -7 -7 -6 -6 -6 -6 -6 -5 -5 -5 -5 -5 --------- Run | Yrd Mat Min Mat Min Exi Min Mat Fac Low Low Fac Was Fac Low Low Fac Was Fac Upp Upp Total 28248 | 92 1252 842 1297 1107 269 857 1355 1698 1425 1182 3084 579 3327 1145 1473 2313 522 1807 1211 1411 Wait 3863 | 11 129 179 220 104 . 80 341 248 137 44 237 203 362 25 126 357 185 431 174 270 Move 22630 | 55 993 633 906 943 264 738 865 1335 1263 1109 2590 313 2734 1110 1308 1807 311 1290 993 1070 Hop . | . . . . . . . . . . . . . . . . . . . . . Pick Up 149 | 7 12 4 15 15 2 5 20 5 2 . 25 2 16 . 2 16 . . 1 . Fast Attach 48 | 7 . . 7 1 . 1 8 . 1 1 4 . 6 . . 10 . 1 1 . Attach 50 | . 3 . 2 3 . 4 5 4 1 1 7 . 8 . 2 5 . 1 3 1 Detach 8 | . . . . . . 1 . 1 1 . . . 2 . . . . . 3 . Swap 222 | . 11 4 17 10 1 10 32 32 8 5 36 1 20 2 4 17 1 3 4 4 Drop 151 | 2 8 5 26 6 2 5 13 16 3 1 29 3 13 . 2 14 1 1 1 . Fire 738 | 10 96 17 103 25 . 13 68 35 7 11 86 57 73 3 27 18 10 19 15 45 Melee 388 | . . . . . . . 3 22 2 10 70 . 93 5 2 69 14 61 16 21 Ram 1 | . . . 1 . . . . . . . . . . . . . . . . . Kick . | . . . . . . . . . . . . . . . . . . . . . Crush . | . . . . . . . . . . . . . . . . . . . . . Escape Stasis . | . . . . . . . . . . . . . . . . . . . . . Rewire . | . . . . . . . . . . . . . . . . . . . . . Trap . | . . . . . . . . . . . . . . . . . . . . . Miscellaneous . | . . . . . . . . . . . . . . . . . . . . . Route ------- -11/Scrapyard -10/Materials (discovered 5 exits: *Mat x3 / [*Min] / [*Sub]) -10/Mines (discovered 3 exits: *Mat x2 / [*Sub]) -9/Materials (discovered 2 exits: Mat / *Min) -9/Mines (discovered 3 exits: *Mat x2 / [*Exi]) -9/Exiles -8/Mines (discovered 2 exits: *Mat x2) -8/Materials -7/Factory (discovered 4 exits: *Fac / *Sto / *Low x2) -7/Lower Caves -7/Lower Caves (discovered 2 exits: *Fac / *Zio) -6/Factory (discovered 7 exits: *Fac x3 / *Low x2 / *Ext x2) -6/Waste -6/Factory (discovered 6 exits: *Fac x2 / *Low x2 / *Ext x2) -6/Lower Caves -6/Lower Caves (discovered 2 exits: *Fac / *Dat) -5/Factory (discovered 3 exits: *Fac / Upp x2) -5/Waste -5/Factory (discovered 3 exits: *Fac / *Upp x2) -5/Upper Caves -5/Upper Caves (discovered 1 exit: *Fac) History --------- Turn | Location | Event 2 | -11/Scrapyard | Met Revision 17 19 | -11/Scrapyard | Discovered new exit (range 16) 111 | -11/Scrapyard | Entered Materials 315 | -10/Materials | Build established: Mutant 546 | -10/Materials | Discovered new exit (range 15) 925 | -10/Materials | Discovered new exit (range 16) 1060 | -10/Materials | Discovered new exit (range 9) 1156 | -10/Materials | Discovered new exit (range 11) 1259 | -10/Materials | Core integrity fell below 50% 1411 | -10/Materials | Discovered new exit (range 16) 1518 | -10/Materials | Entered Mines 1573 | -10/Mines | Discovered new exit (range 12) 1591 | -10/Mines | Build established: Scavenger-Mutant 1601 | -10/Mines | Assisted by bots powering up and referring to "LRC-V3" 1724 | -10/Mines | Discovered new exit (range 9) 1877 | -10/Mines | Core integrity fell below 20% 2051 | -10/Mines | Discovered new exit (range 9) 2164 | -10/Mines | Learned 2 Materials zone layouts 2356 | -10/Mines | Entered Materials 2356 | -9/Materials | Accompanied by 1 ally 2356 | -9/Materials | Evolved 2 slots: Utility x2 2357 | -9/Materials | Identified exit to Materials 2361 | -9/Materials | Led the pair of lost Derelicts to an unsafe place 3332 | -9/Materials | Repaired Hvy. Assault Rifle 3366 | -9/Materials | Repaired Hvy. Assault Rifle 3393 | -9/Materials | Repaired Core Shielding 3424 | -9/Materials | Discovered new exit (range 14) 3586 | -9/Materials | Destroyed 7 combat bots 3690 | -9/Materials | Identified exit to Mines 3868 | -9/Materials | Entered Mines 3895 | -9/Mines | Met a Derelict bent on vengeance 3982 | -9/Mines | Deemed a non-threat by the Exiles lab entrance 3983 | -9/Mines | Discovered new exit (range 5) 4066 | -9/Mines | Assembled infested the area 4071 | -9/Mines | Assisted by a Guerilla fighting off Assembled 4267 | -9/Mines | Found DCF Scrap (15 items) 4328 | -9/Mines | Discovered exit to Materials (range 3) 4437 | -9/Mines | Learned location of Storage (-7) 4713 | -9/Mines | Learned location of Zion (-7) 4927 | -9/Mines | Core integrity fell below 50% 4957 | -9/Mines | Lost 3 parts (1p1n1w) 4999 | -9/Mines | Discovered exit to Materials (range 10) 5166 | -9/Mines | Found the Drone Emporium 5191 | -9/Mines | Found Prototype Device 5297 | -9/Mines | Entered Exiles 5335 | -9/Exiles | Met 8R-AWN 5358 | -9/Exiles | Met EX-HEX 5432 | -9/Exiles | Met EX-DEC 5474 | -9/Exiles | Visited The Gauntlet 5558 | -9/Exiles | Met EX-BIN 5659 | -9/Exiles | Discovered new exit (range 10) 5672 | -9/Exiles | Entered Mines 5839 | -8/Mines | Found DCF Scrap (13 items) 6278 | -8/Mines | Discovered exit to Materials (range 11) 6524 | -8/Mines | Discovered exit to Materials (range 6) 6850 | -8/Mines | Entered Materials 6850 | -8/Materials | Evolved 2 slots: Propulsion x2 7756 | -8/Materials | Lost 3 parts (2n1w) 7937 | -8/Materials | Identified Thief Drone Bay 8087 | -8/Materials | Repaired Seismic Detector 8120 | -8/Materials | Repaired Imp. Hover Unit 8165 | -8/Materials | Repaired Gatling Laser 8193 | -8/Materials | Repaired Core Shielding 8221 | -8/Materials | Repaired Huge Storage Unit 8270 | -8/Materials | Repaired Mni. Grenade Launcher 8547 | -8/Materials | Discovered new exit (range 16) 8567 | -8/Materials | Entered Factory 8567 | -7/Factory | Evolved 2 slots: Propulsion x1, Utility x1 8664 | -7/Factory | Discovered new exit (range 8) 8667 | -7/Factory | Identified exit to Factory 8888 | -7/Factory | Discovered new exit (range 4) 8891 | -7/Factory | Identified exit to Storage 9800 | -7/Factory | Identified exit to Lower Caves 9823 | -7/Factory | Entered Lower Caves 9826 | -7/Lower Caves | Learned Factory garrison access intel 10193 | -7/Lower Caves | Discovered new exit (range 6) 10195 | -7/Lower Caves | Identified exit to Lower Caves 10273 | -7/Lower Caves | Encountered a Warlord checkpoint 10622 | -7/Lower Caves | Entered another Lower Caves area 10626 | -7/Lower Caves | Discovered exit to Factory (range 11) 10714 | -7/Lower Caves | Learned Factory trap positions 10898 | -7/Lower Caves | Encountered a Warlord checkpoint 10926 | -7/Lower Caves | Discovered new exit (range 15) 10931 | -7/Lower Caves | Identified exit to Zion 11004 | -7/Lower Caves | Spotted B-75 Beast 11091 | -7/Lower Caves | Found DCF Scrap (11 items) 11213 | -7/Lower Caves | Entered Factory 11213 | -6/Factory | Evolved 2 slots: Utility x2 11214 | -6/Factory | Loaded intel: 80 trap records 11215 | -6/Factory | Loaded intel: 4 garrison access locations 11252 | -6/Factory | Repaired Gauss Cannon 11272 | -6/Factory | Discovered new exit (range 12) 11280 | -6/Factory | Identified exit to Factory 11311 | -6/Factory | Build established: Hacker-Mutant 11433 | -6/Factory | Discovered new exit (range 5) 11434 | -6/Factory | Identified exit to Extension 11781 | -6/Factory | Repaired Broken Imp. Gravmag System 11805 | -6/Factory | Discovered exit to Factory (range 9) 12086 | -6/Factory | Lost 3 parts (1n1u1w) 12331 | -6/Factory | Discovered new exit (range 9) 12408 | -6/Factory | Discovered exit to Factory (range 4) 12469 | -6/Factory | Fabricated Adv. Hacking Suite (x1) 12499 | -6/Factory | Fabricated Adv. Hacking Suite (x1) 12845 | -6/Factory | Discovered new exit (range 14) 13169 | -6/Factory | Discovered exit to Extension (range 16) 13171 | -6/Factory | Sucked down chute 13171 | -6/Factory | Entered Waste 13174 | -6/Waste | Found Broken Gamma Bomb Array 13194 | -6/Waste | Spotted C-40 Crusher 13213 | -6/Waste | Spotted C-40 Crusher 13217 | -6/Waste | Spotted C-40 Crusher 13217 | -6/Waste | Spotted C-40 Crusher 13217 | -6/Waste | Spotted C-40 Crusher 13228 | -6/Waste | Spotted C-40 Crusher 13274 | -6/Waste | Warlord forces began an assault 13458 | -6/Waste | Destroyed C-40 Crusher 13472 | -6/Waste | Allies destroyed C-40 Crusher 13480 | -6/Waste | Destroyed C-40 Crusher 13501 | -6/Waste | Lost 5 allies 13565 | -6/Waste | Allies destroyed C-40 Crusher 13567 | -6/Waste | Allies destroyed C-40 Crusher 13597 | -6/Waste | Lost 4 allies 13634 | -6/Waste | Discovered new exit (range 10) 13642 | -6/Waste | Identified exit to Factory 13643 | -6/Waste | Entered Factory 13977 | -6/Factory | Identified exit to Lower Caves 14341 | -6/Factory | Discovered exit to Factory (range 4) 14952 | -6/Factory | Discovered exit to Factory (range 13) 14990 | -6/Factory | Fabricated Adv. Hacking Suite (x1) 15046 | -6/Factory | Fabricated Adv. Hacking Suite (x1) 15125 | -6/Factory | Fabricated Exp. Targeting Computer (x1) 15202 | -6/Factory | Fabricated Exp. Targeting Computer (x1) 15300 | -6/Factory | Spotted B-75 Beast 15602 | -6/Factory | Build established: Hacker-Scout 15711 | -6/Factory | Repaired Broken Gamma Bomb Array 15726 | -6/Factory | Entered Lower Caves 15866 | -6/Lower Caves | Learned 8 Factory zone layouts 16004 | -6/Lower Caves | Discovered new exit (range 7) 16007 | -6/Lower Caves | Identified exit to Lower Caves 16284 | -6/Lower Caves | Entered another Lower Caves area 16331 | -6/Lower Caves | Discovered exit to Factory (range 11) 16602 | -6/Lower Caves | Learned 4 Factory zone layouts 16606 | -6/Lower Caves | Learned Factory terminal intel 16948 | -6/Lower Caves | Discovered new exit (range 7) 16965 | -6/Lower Caves | Identified exit to Data Miner 17082 | -6/Lower Caves | Entered Factory 17082 | -5/Factory | Evolved 2 slots: Propulsion x1, Utility x1 17083 | -5/Factory | Identified exit to Upper Caves 17083 | -5/Factory | Identified exit to Factory 17084 | -5/Factory | Loaded intel: 26 terminal locations 17585 | -5/Factory | Fabricated Exp. Utility Shielding (x1) 17590 | -5/Factory | Fabricated Exp. Utility Shielding (x1) 17742 | -5/Factory | Repaired Cmb. Airjet 17841 | -5/Factory | Repaired Lgt. Angular Momentum Engine 17908 | -5/Factory | Fabricated Prc. Energy Filter (x1) 18270 | -5/Factory | Lost 4 parts (3n1w) 18458 | -5/Factory | Central database locked down 18472 | -5/Factory | Manually triggered Chute Trap 18472 | -5/Factory | Sucked down chute 18472 | -5/Factory | Entered Waste 18477 | -5/Waste | 1 allies followed down the chute 18516 | -5/Waste | Spotted C-40 Crusher 18517 | -5/Waste | Spotted C-40 Crusher 18520 | -5/Waste | Warlord forces began an assault 18599 | -5/Waste | Spotted C-40 Crusher 18606 | -5/Waste | Spotted C-40 Crusher 18613 | -5/Waste | Allies destroyed C-40 Crusher 18617 | -5/Waste | Allies destroyed C-40 Crusher 18628 | -5/Waste | Allies destroyed C-40 Crusher 18631 | -5/Waste | Spotted C-40 Crusher 18635 | -5/Waste | Allies destroyed C-40 Crusher 18691 | -5/Waste | Spotted C-40 Crusher 18796 | -5/Waste | Discovered new exit (range 21) 18850 | -5/Waste | Murdered 5 allies 18920 | -5/Waste | Identified exit to Factory 18923 | -5/Waste | Entered Factory 18923 | -5/Factory | Accompanied by 1 ally 19010 | -5/Factory | Spotted B-75 Beast 19141 | -5/Factory | Discovered exit to Upper Caves (range 20) 19307 | -5/Factory | Discovered exit to Upper Caves (range 6) 19415 | -5/Factory | Discovered exit to Factory (range 21) 19827 | -5/Factory | Repaired Cld. Aerolev Unit 19993 | -5/Factory | System corruption reached 10% 20070 | -5/Factory | Entered Upper Caves 20655 | -5/Upper Caves | Build established: Hacker-Assassin 20805 | -5/Upper Caves | Discovered new exit (range 21) 20812 | -5/Upper Caves | Learned Factory interactive machine intel 20832 | -5/Upper Caves | Found DCF Scrap (13 items) 21123 | -5/Upper Caves | Identified exit to Upper Caves 21138 | -5/Upper Caves | Entered another Upper Caves area 21144 | -5/Upper Caves | Discovered exit to Factory (range 6) 21660 | -5/Upper Caves | Learned Factory stockpile data 22383 | -5/Upper Caves | Core integrity fell below 50% 22394 | -5/Upper Caves | Core integrity fell below 20% 22399 | -5/Upper Caves | Destroyed by S-27 Virus with Autogun Last Messages --------------- 22383_ Acquired 30 matter. 22385_ Slug penetrates Wall. 22385_ Penetrated by Slug. 22385_ Mak. Power Source destroyed. 22386_ Slug penetrates Wall. 22387_ FMF,U&OJOJVCU8MLC3Q9N 22387_ VTOL Module fries itself beyond repair. 22388_ Prc. Energy Filter destroyed. 22388_ Penetrated by Slug. 22390_ Slug penetrates Wall. 22391_ Penetrated by Slug. 22392_ Lgt. Nuclear Core fries itself beyond repair. 22393_ Penetrated by Slug. 22393_ Slug penetrates H-66 Slayer. 22394_ Critical hit (Destroy). 22394_ Cmb. Gravmag System destroyed. 22395_ Penetrated by Slug. 22397_ Autogun fries itself beyond repair. 22397_ Lance destroyed. 22398_ Penetrated by Slug. Map ----- +----------------------------------------------------+ | ????????????????????????????????????####?# ## | | ???????????????????????????????????## ## ## | | ???????????????????????????????????# ## ## | | ???????????????????????????????????# ^ # ## | | ???????????????????????????????????# ^ | | ???????????????????????????????????## ^ | | ????????????????????????????????????## ### | | ?????????????????????????????????????#### ##?# | | ????????????????????????????????????????## ###??# | | ?????????????????????????????????????########????# | | ?????????????????????????????????????# ?????? | | ?????????????????????????????????????# ????? | | ?????????????????????????????????????# ##??? | | ?????????????????????????????????????# ##?? | | ?????????????????????????????????????# #?? | | ???????????????????????##????????????# ##? | | ???????????????????????# #???????????? ## | | ?????????????????????# ##"####??###????#### # | | ??????????????????????# #### ##???# | | ??????????????????????#### #### ### | | ?????????????????????????## [%[ #???## | | ??????????????????????####### % h = ##????# | | ??????????????????????# ### ### ##?????## | | ???????????????????????# ## #???????# | | ???????????????????????# h ## # #???????? | | ???????????????????????# @ s ## ###???????? | | ??????????????????# ## # #????####?# | | ?????????????????# s### ####?# ### | | ?????????????? ### ###"# ### | | ???????????# s### #?## | | ???????????# ##?# #??# | | ???????????## ??# #####??# ### | | ????????????### ? #???????# ##?## | | ??????????????## #???????#"#####"##?# | | ???????????????##### #???????# #???## ### | | ???????????????????# ##???###??##???## ## | | ??????????????????? #??#### ##??????# | | ?????????????????? #??## ##?????## | | ????????????????? #???# ####??## | | ????????????????? ##?????# ##?# | | ???????????????? ???????# #### | | ???????????????? #???????## ### | | ???????????????? ##?????????#" ## #### | | ???????????????? ???????????#"""## ##??? | | ????????????????????????????# # #" "#??? | | ???????????????????????????# ####"#"### ###??? | | ???????????????????????????##???## #### ##????? | | ????????????????????????????????# "# ##?????? | | ????????????????????????????????### #??????? | | ??????????????????????????????????# #?????? | +----------------------------------------------------+ Best States ------------- Heat Dissipation 50 Energy Generation 18 Energy Capacity 310 Matter Stores 300 Matter Capacity 300 Sight Range 22 Robot Scan Range 16 Terrain Scan Density 10 Armor Coverage 450 Core Shielding 20 Utility Shielding 90 Evasion (%) 57 Targeting Accuracy 8 Energy Filtering 75 Offensive Hacking 56 Authchip Count 6 Item Schematics ----------------- Hcp. Storage Unit | -10/Materials | Hacked Huge Storage Unit | -10/Materials | Hacked Visual Processing Unit | -9/Materials | Scanalyzed Sensor Array | -8/Materials | Scanalyzed Mni. Grenade Launcher | -8/Materials | Scanalyzed Hacking Suite | -8/Materials | Scanalyzed Core Shielding | -8/Materials | Scanalyzed Hvy. Reactive Plating | -6/Factory | Hacked Imp. Hacking Suite | -6/Factory | Scanalyzed Adv. Hacking Suite | -6/Factory | Hacked Exp. Targeting Computer | -6/Factory | Hacked Exp. Utility Shielding | -6/Factory | Hacked Prc. Energy Filter | -5/Factory | Hacked Adv. Hardlight Generator | -5/Factory | Hacked Graphene Brace | -5/Factory | Hacked Quantum Capacitor | -5/Factory | Hacked Robot Schematics ------------------ None Fabricated ------------ Adv. Hacking Suite | x1 | -6/Factory | Authchip Adv. Hacking Suite | x1 | -6/Factory | Authchip Adv. Hacking Suite | x1 | -6/Factory | Authchip Adv. Hacking Suite | x1 | -6/Factory | Authchip Exp. Targeting Computer | x1 | -6/Factory | Authchip Exp. Targeting Computer | x1 | -6/Factory | Authchip Exp. Utility Shielding | x1 | -5/Factory | Authchip Exp. Utility Shielding | x1 | -5/Factory | Authchip Prc. Energy Filter | x1 | -5/Factory | Authchip Repaired ---------- Hvy. Assault Rifle | 28% | -9/Materials Hvy. Assault Rifle | 70% | -9/Materials Core Shielding | 58% | -9/Materials Seismic Detector | 15% | -8/Materials Imp. Hover Unit | 25% | -8/Materials Gatling Laser | 35% | -8/Materials Core Shielding | 8% | -8/Materials Huge Storage Unit | 81% | -8/Materials Mni. Grenade Launcher | 58% | -8/Materials Gauss Cannon | 17% | -6/Factory Imp. Gravmag System | 99% | -6/Factory | Broken Gamma Bomb Array | 53% | -6/Factory | Broken Cmb. Airjet | 30% | -5/Factory Lgt. Angular Momentum Engine | 40% | -5/Factory Cld. Aerolev Unit | 50% | -5/Factory Alien Tech Used ----------------- None Achievements -------------- None Challenges ------------ None Game ------ Seed AlloySalvagingShifter Manual? 0 Play Time 04:57:07 Cumulative 378.1 hours Start 2025.05.29 @ 01:57:34 End 2025.05.29 @ 19:07:16 Sessions 3 Manual Loads 0 Difficulty Rogue Special Mode None Game No. 195 Rogue 195 Adventurer 0 Explorer 0 Win Type - Total 4 Types 4/0/0/0/0/0/0/0/0/0 Lore% 61 Gallery% 66 Achievement% 63 Wizard Run 0 Options --------- Layout 0 ASCII 0 Keyboard 1 Movement Vi Keybinds 0 Fullscreen 2 Font 18/SmallcapsGlow Map View 76x50 Zoom Use 0% Tactical HUD 1 Map Filters NONE Filters NONE Steam 1 RUN: 1c5c8a88-be1b-4c14-b221-536f8bab9461